[Event "FIDE Womens World Cup 2021"]
[Site "Sochi"]
[Date "2021.07.14"]
[Round "1.6"]
[White "Mammadova, Gulnar"]
[Black "Narva, Mai"]
[Result "1-0"]
[ECO "A40"]
[WhiteElo "2385"]
[BlackElo "2276"]
[Annotator "ChessBase"]
[PlyCount "189"]
[EventDate "2021.07.12"]
[EventType "k.o."]
[EventCountry "RUS"]
[SourceTitle "playchess.com"]
[Source "ChessBase"]
[SourceQuality "1"]
[TimeControl "600+10"]

1. d4 {[%emt 0:00:31]} g6 {[%emt 0:00:03]} 2. Nf3 {[%emt 0:00:15]} Bg7 {[%emt 0:00:16]} 3. Bf4 {[%emt 0:00:25]} c5 {[%emt 0:01:22]} 4. e3 {[%emt 0:00:54]} cxd4 {[%emt 0:01:30]} 5. exd4 {[%emt 0:00:04]} d6 {[%emt 0:01:25]} 6. Be2 {[%emt 0:01:11]} Nf6 {[%emt 0:00:35]} 7. O-O {[%emt 0:00:13]} O-O {[%emt 0:00:09]} 8. c4 {[%emt 0:00:04]} Nh5 {[%emt 0:01:13]} 9. Be3 {[%emt 0:00:05]} e5 {[%emt 0:00:54]} 10. Nc3 {[%emt 0:00:15]} Nd7 {[%emt 0:00:34]} 11. dxe5 {[%emt 0:00:45]} dxe5 {[%emt 0:00:07]} 12. Qd6 {[%emt 0:00:07]} Qf6 {[%emt 0:00:43]} 13. Rfd1 {[%emt 0:00:41]} e4 {[%emt 0:00:54]} 14. Ng5 {[%emt 0:01:48]} Qxd6 {[%emt 0:00:07]} 15. Rxd6 {[%emt 0:00:01]} Be5 {[%emt 0:00:45]} 16. Rd5 {[%emt 0:00:13]} Nhf6 {[%emt 0:00:18]} 17. Rd2 {[%emt 0:00:02]} Bxc3 {[%emt 0:00:38]} 18. bxc3 {[%emt 0:00:01]} h6 {[%emt 0:00:08]} 19. Nh3 {[%emt 0:00:01]} g5 {[%emt 0:00:47]} 20. Rd6 {[%emt 0:00:36]} Re8 {[%emt 0:00:28]} 21. Rad1 {[%emt 0:00:40]} Re6 {[%emt 0:00:05]} 22. c5 {[%emt 0:00:10]} Ne5 {[%emt 0:00:19]} 23. Bd4 {[%emt 0:01:02]} Rxd6 {[%emt 0:00:19]} 24. cxd6 {[%emt 0:00:02]} Bxh3 {[%emt 0:00:15]} 25. Bxe5 {[%emt 0:01:49]} Nd7 {[%emt 0:00:04]} 26. Bd4 {[%emt 0:02:03]} Bf5 {[%emt 0:00:17]} 27. Bc4 {[%emt 0:00:22]} Rc8 {[%emt 0:00:13]} 28. Bd5 {[%emt 0:00:01]} b6 {[%emt 0:00:02]} 29. Re1 {[%emt 0:00:08]} Nc5 {[%emt 0:00:10]} 30. c4 {[%emt 0:00:29]} Rd8 {[%emt 0:00:10]} 31. Bxc5 {[%emt 0:00:08]} bxc5 {[%emt 0:00:01]} 32. g4 {[%emt 0:00:10]} Bxg4 {[%emt 0:00:09]} 33. Rxe4 {[%emt 0:00:01]} Bf3 {[%emt 0:00:25]} 34. Re5 {[%emt 0:00:01]} Bxd5 {[%emt 0:00:04]} 35. Rxd5 {[%emt 0:00:01]} Kg7 {[%emt 0:00:06]} 36. Kf1 {[%emt 0:00:17]} Kf6 {[%emt 0:00:01]} 37. Ke2 {[%emt 0:00:01]} Ke6 {[%emt 0:00:04]} 38. Rxc5 {[%emt 0:00:04]} Rxd6 {[%emt 0:00:02]} 39. Ra5 {[%emt 0:00:04]} a6 {[%emt 0:00:10]} 40. Rc5 {[%emt 0:00:03]} f5 {[%emt 0:00:26]} 41. a4 {[%emt 0:00:03]} h5 {[%emt 0:00:16]} 42. a5 {[%emt 0:00:02]} h4 {[%emt 0:00:04]} 43. Rc8 {[%emt 0:00:02]} g4 {[%emt 0:00:16]} 44. Ke3 {[%emt 0:00:31]} Ke7 {[%emt 0:00:23]} 45. Rb8 {[%emt 0:00:14]} Kd7 {[%emt 0:00:08]} 46. Rb7+ {[%emt 0:00:34]} Kc8 {[%emt 0:00:12]} 47. Rf7 {[%emt 0:00:03]} Re6+ {[%emt 0:00:08]} 48. Kd4 {[%emt 0:00:14]} Re4+ {[%emt 0:00:08]} 49. Kd5 {[%emt 0:00:00]} g3 {[%emt 0:00:14]} 50. fxg3 {[%emt 0:00:11]} hxg3 {[%emt 0:00:02]} 51. hxg3 {[%emt 0:00:05]} Rg4 {[%emt 0:00:03]} 52. Rxf5 {[%emt 0:00:35]} Rxg3 {[%emt 0:00:01]} 53. Kc5 {[%emt 0:00:16]} Rg6 {[%emt 0:00:10]} 54. Rf8+ {[%emt 0:00:07]} Kc7 {[%emt 0:00:04]} 55. Rf7+ {[%emt 0:00:01]} Kc8 {[%emt 0:00:03]} 56. Rf5 {[%emt 0:00:05]} Kc7 {[%emt 0:00:05]} 57. Rh5 {[%emt 0:00:01]} Rf6 {[%emt 0:00:12]} 58. Rh7+ {[%emt 0:00:19]} Kc8 {[%emt 0:00:01]} 59. Rg7 {[%emt 0:00:05]} Rh6 {[%emt 0:00:04]} 60. Kd5 {[%emt 0:00:02]} Rh5+ {[%emt 0:00:30]} 61. Kd6 {[%emt 0:00:05]} Rh6+ {[%emt 0:00:10]} 62. Kc5 {[%emt 0:00:01]} Rh5+ {[%emt 0:00:19]} 63. Kb4 {[%emt 0:00:26]} Rh4 {[%emt 0:00:32]} 64. Re7 {[%emt 0:00:21]} Rh6 {[%emt 0:00:05]} 65. Kc5 {[%emt 0:00:03]} Rg6 {[%emt 0:00:17]} 66. Kd5 {[%emt 0:00:05]} Rg5+ {[%emt 0:00:12]} 67. Kd6 {[%emt 0:00:22]} Rg6+ {[%emt 0:00:09]} 68. Re6 {[%emt 0:00:02]} Rg1 {[%emt 0:00:04]} 69. Kc6 {[%emt 0:00:13]} Kb8 {[%emt 0:00:14]} 70. c5 {[%emt 0:00:11]} Rb1 {[%emt 0:00:13]} 71. Kd7 {[%emt 0:00:21]} Rd1+ {[%emt 0:00:06]} 72. Rd6 {[%emt 0:00:10]} Rh1 {[%emt 0:00:13]} 73. Rxa6 {[%emt 0:00:04]} Rh7+ {[%emt 0:00:11]} 74. Kc6 {[%emt 0:00:01]} Rh6+ {[%emt 0:00:11]} 75. Kb5 {[%emt 0:00:01]} Rh1 {[%emt 0:00:01]} 76. Rg6 {[%emt 0:00:04]} Rb1+ {[%emt 0:00:12]} 77. Kc6 {[%emt 0:00:03]} Ra1 {[%emt 0:00:06]} 78. Rg7 {[%emt 0:00:34]} Ra2 {[%emt 0:00:16]} 79. Rg6 {[%emt 0:00:20]} Ra1 {[%emt 0:00:03]} 80. Kd7 {[%emt 0:00:11]} Rd1+ {[%emt 0:00:21]} 81. Rd6 {[%emt 0:00:10]} Rh1 {[%emt 0:00:02]} 82. Rb6+ {[%emt 0:00:28]} Ka7 {[%emt 0:00:02]} 83. Re6 {[%emt 0:00:13]} Rd1+ {[%emt 0:00:25]} 84. Kc7 {[%emt 0:00:05]} Ra1 {[%emt 0:00:10]} 85. a6 {[%emt 0:00:10]} Rc1 {[%emt 0:00:09]} 86. c6 {[%emt 0:00:06]} Kxa6 {[%emt 0:00:12]} 87. Kb8 {[%emt 0:00:09]} Rb1+ {[%emt 0:00:07]} 88. Ka8 {[%emt 0:00:01]} Kb6 {[%emt 0:00:10]} 89. Kb8 {[%emt 0:00:04]} Ka6+ {[%emt 0:00:13]} 90. Kc8 {[%emt 0:00:01]} Ka7 {[%emt 0:00:09]} 91. Re7+ {[%emt 0:00:30]} Ka8 {[%emt 0:00:08]} 92. c7 {[%emt 0:00:11]} Rd1 {[%emt 0:00:11]} 93. Re2 {[%emt 0:00:12]} Ka7 {[%emt 0:00:04]} 94. Ra2+ {[%emt 0:00:03]} Kb6 {[%emt 0:00:04]} 95. Kb8 {[%emt 0:00:01]} 1-0

[Event "FIDE Womens World Cup 2021"]
[Site "Sochi"]
[Date "2021.07.14"]
[Round "1.6"]
[White "Wafa, Shahenda"]
[Black "Skripchenko, Almira"]
[Result "0-1"]
[ECO "B01"]
[WhiteElo "2106"]
[BlackElo "2411"]
[Annotator "ChessBase"]
[PlyCount "82"]
[EventDate "2021.07.12"]
[EventType "k.o."]
[EventCountry "RUS"]
[SourceTitle "playchess.com"]
[Source "ChessBase"]
[SourceQuality "1"]
[TimeControl "600+10"]

1. e4 {[%emt 0:00:02]} d5 {[%emt 0:00:00]} 2. exd5 {[%emt 0:00:04]} Qxd5 {[%emt 0:00:02]} 3. d4 {[%emt 0:00:06]} c6 {[%emt 0:00:11]} 4. Nf3 {[%emt 0:00:11]} Nf6 {[%emt 0:00:18]} 5. Be2 {[%emt 0:00:12]} Bg4 {[%emt 0:00:21]} 6. c4 {[%emt 0:00:19]} Qd8 {[%emt 0:00:01]} 7. O-O {[%emt 0:00:09]} e6 {[%emt 0:00:01]} 8. Nc3 {[%emt 0:00:07]} Be7 {[%emt 0:00:03]} 9. h3 {[%emt 0:00:09]} Bh5 {[%emt 0:00:07]} 10. Be3 {[%emt 0:00:30]} O-O {[%emt 0:00:03]} 11. Ne5 {[%emt 0:00:13]} Bxe2 {[%emt 0:00:09]} 12. Qxe2 {[%emt 0:00:04]} Nbd7 {[%emt 0:00:02]} 13. f4 {[%emt 0:00:06]} Bb4 {[%emt 0:00:28]} 14. Bf2 {[%emt 0:01:28]} Qa5 {[%emt 0:00:30]} 15. Rac1 {[%emt 0:00:19]} Rac8 {[%emt 0:02:07]} 16. a3 {[%emt 0:00:27]} Bxc3 {[%emt 0:00:55]} 17. Rxc3 {[%emt 0:00:07]} Qc7 {[%emt 0:00:42]} 18. g4 {[%emt 0:01:49]} Ne8 {[%emt 0:01:33]} 19. g5 {[%emt 0:00:50]} Nd6 {[%emt 0:01:18]} 20. d5 {[%emt 0:00:28]} Nf5 {[%emt 0:00:15]} 21. Rd1 {[%emt 0:01:36]} Nxe5 {[%emt 0:00:25]} 22. fxe5 {[%emt 0:00:09]} cxd5 {[%emt 0:00:12]} 23. cxd5 {[%emt 0:00:09]} Qe7 {[%emt 0:00:02]} 24. Qg4 {[%emt 0:01:23]} Rxc3 {[%emt 0:00:20]} 25. d6 {[%emt 0:00:20]} Qd7 {[%emt 0:00:15]} 26. bxc3 {[%emt 0:00:02]} b6 {[%emt 0:00:10]} 27. Qb4 {[%emt 0:00:53]} Rc8 {[%emt 0:00:14]} 28. c4 {[%emt 0:00:12]} h5 {[%emt 0:00:18]} 29. c5 {[%emt 0:00:19]} bxc5 {[%emt 0:00:23]} 30. Bxc5 {[%emt 0:00:02]} Qc6 {[%emt 0:00:33]} 31. Bxa7 {[%emt 0:00:48]} Qf3 {[%emt 0:00:11]} 32. Qd2 {[%emt 0:00:18]} Qxh3 {[%emt 0:00:46]} 33. Qg2 {[%emt 0:00:14]} Qxa3 {[%emt 0:00:03]} 34. Bf2 {[%emt 0:00:34]} Qb3 {[%emt 0:00:14]} 35. Ra1 {[%emt 0:00:16]} Kh7 {[%emt 0:00:09]} 36. Re1 {[%emt 0:00:12]} Kg6 {[%emt 0:00:08]} 37. Qh2 {[%emt 0:00:08]} Qf3 {[%emt 0:00:23]} 38. Qg2 {[%emt 0:00:10]} Qb3 {[%emt 0:00:17]} 39. Qe4 {[%emt 0:00:05]} Rc4 {[%emt 0:00:07]} 40. Qe2 {[%emt 0:00:18]} Rg4+ {[%emt 0:00:03]} 41. Kf1 {[%emt 0:00:04]} Qh3# {[%emt 0:00:01]} 0-1

[Event "FIDE Womens World Cup 2021"]
[Site "Sochi"]
[Date "2021.07.14"]
[Round "1.6"]
[White "Demchenko, Svitlana"]
[Black "Cyfka, Karina"]
[Result "1/2-1/2"]
[ECO "C47"]
[WhiteElo "2089"]
[BlackElo "2417"]
[Annotator "ChessBase"]
[PlyCount "109"]
[EventDate "2021.07.12"]
[EventType "k.o."]
[EventCountry "RUS"]
[SourceTitle "playchess.com"]
[Source "ChessBase"]
[SourceQuality "1"]
[TimeControl "600+10"]

1. e4 {[%emt 0:00:03]} e5 {[%emt 0:00:02]} 2. Nf3 {[%emt 0:00:01]} Nf6 {[%emt 0:00:01]} 3. Nc3 {[%emt 0:00:02]} Nc6 {[%emt 0:00:02]} 4. d4 {[%emt 0:00:01]} exd4 {[%emt 0:00:02]} 5. Nxd4 {[%emt 0:00:01]} Bb4 {[%emt 0:00:08]} 6. Nxc6 {[%emt 0:00:01]} bxc6 {[%emt 0:00:02]} 7. Bd3 {[%emt 0:00:02]} d5 {[%emt 0:00:05]} 8. exd5 {[%emt 0:00:05]} cxd5 {[%emt 0:00:25]} 9. O-O {[%emt 0:00:02]} O-O {[%emt 0:00:02]} 10. Bg5 {[%emt 0:00:04]} c6 {[%emt 0:00:02]} 11. Qf3 {[%emt 0:00:07]} Bd6 {[%emt 0:00:05]} 12. h3 {[%emt 0:00:17]} Rb8 {[%emt 0:00:03]} 13. Rab1 {[%emt 0:00:09]} h6 {[%emt 0:00:11]} 14. Bh4 {[%emt 0:00:05]} Rb4 {[%emt 0:00:24]} 15. Bg3 {[%emt 0:00:34]} Qc7 {[%emt 0:00:37]} 16. a3 {[%emt 0:00:08]} Rb8 {[%emt 0:00:11]} 17. Ne2 {[%emt 0:00:06]} Nh7 {[%emt 0:01:01]} 18. h4 {[%emt 0:00:43]} Nf6 {[%emt 0:00:07]} 19. Bf4 {[%emt 0:00:53]} Ng4 {[%emt 0:01:35]} 20. Qg3 {[%emt 0:00:30]} Bxf4 {[%emt 0:02:49]} 21. Nxf4 {[%emt 0:00:02]} Qd6 {[%emt 0:01:02]} 22. h5 {[%emt 0:01:12]} Bd7 {[%emt 0:00:24]} 23. c4 {[%emt 0:00:38]} Rfe8 {[%emt 0:01:10]} 24. cxd5 {[%emt 0:00:45]} cxd5 {[%emt 0:00:02]} 25. Rfd1 {[%emt 0:00:02]} d4 {[%emt 0:00:36]} 26. b4 {[%emt 0:00:29]} Rbc8 {[%emt 0:00:20]} 27. Be2 {[%emt 0:00:41]} Nf6 {[%emt 0:00:28]} 28. Bd3 {[%emt 0:01:18]} Ne4 {[%emt 0:00:57]} 29. Bxe4 {[%emt 0:00:03]} Rxe4 {[%emt 0:00:03]} 30. Ne2 {[%emt 0:00:09]} Qf6 {[%emt 0:00:17]} 31. Qd3 {[%emt 0:01:09]} Bf5 {[%emt 0:00:24]} 32. Qf3 {[%emt 0:00:01]} Rxe2 {[%emt 0:00:59]} 33. Qxe2 {[%emt 0:00:03]} Bxb1 {[%emt 0:00:01]} 34. Rxb1 {[%emt 0:00:01]} Rd8 {[%emt 0:00:07]} 35. Rd1 {[%emt 0:00:25]} Qf5 {[%emt 0:00:27]} 36. Rd3 {[%emt 0:00:19]} Qe6 {[%emt 0:00:22]} 37. Qd1 {[%emt 0:00:16]} Qe5 {[%emt 0:00:06]} 38. a4 {[%emt 0:00:40]} Qd6 {[%emt 0:00:09]} 39. Qb3 {[%emt 0:00:23]} Qe5 {[%emt 0:00:08]} 40. Qd1 {[%emt 0:00:28]} Qd6 {[%emt 0:00:01]} 41. b5 {[%emt 0:00:01]} Qb4 {[%emt 0:00:09]} 42. Kh2 {[%emt 0:00:40]} Qd6+ {[%emt 0:00:07]} 43. g3 {[%emt 0:00:03]} Qe5 {[%emt 0:00:05]} 44. Re3 {[%emt 0:00:57]} Qf5 {[%emt 0:00:25]} 45. Kg1 {[%emt 0:00:44]} d3 {[%emt 0:00:16]} 46. Qd2 {[%emt 0:00:51]} Qd5 {[%emt 0:00:16]} 47. f3 {[%emt 0:00:21]} Qc4 {[%emt 0:00:10]} 48. Kg2 {[%emt 0:00:07]} Qd5 {[%emt 0:00:21]} 49. g4 {[%emt 0:00:15]} Qc4 {[%emt 0:00:01]} 50. Kg3 {[%emt 0:00:07]} Qc7+ {[%emt 0:00:14]} 51. f4 {[%emt 0:00:18]} Qc2 {[%emt 0:00:01]} 52. Qa5 {[%emt 0:00:19]} Qc8 {[%emt 0:00:10]} 53. Qd2 {[%emt 0:00:17]} Qc2 {[%emt 0:00:01]} 54. Qa5 {[%emt 0:00:27]} Qc8 {[%emt 0:00:04]} 55. Qd2 {[%emt 0:00:23]} 1/2-1/2

[Event "FIDE Womens World Cup 2021"]
[Site "Sochi"]
[Date "2021.07.14"]
[Round "1.7"]
[White "Narva, Mai"]
[Black "Mammadova, Gulnar"]
[Result "0-1"]
[ECO "C47"]
[WhiteElo "2276"]
[BlackElo "2385"]
[Annotator "ChessBase"]
[PlyCount "72"]
[EventDate "2021.07.12"]
[EventType "k.o."]
[EventCountry "RUS"]
[SourceTitle "playchess.com"]
[Source "ChessBase"]
[SourceQuality "1"]
[TimeControl "300+3"]

1. e4 {[%emt 0:00:02]} e5 {[%emt 0:00:01]} 2. Nf3 {[%emt 0:00:02]} Nc6 {[%emt 0:00:01]} 3. Nc3 {[%emt 0:00:01]} Nf6 {[%emt 0:00:01]} 4. g3 {[%emt 0:00:02]} d5 {[%emt 0:00:01]} 5. exd5 {[%emt 0:00:01]} Nxd5 {[%emt 0:00:01]} 6. Bg2 {[%emt 0:00:02]} Nxc3 {[%emt 0:00:01]} 7. bxc3 {[%emt 0:00:01]} Bc5 {[%emt 0:00:01]} 8. O-O {[%emt 0:00:03]} O-O {[%emt 0:00:02]} 9. d3 {[%emt 0:00:02]} h6 {[%emt 0:00:01]} 10. Qe2 {[%emt 0:01:02]} Re8 {[%emt 0:00:19]} 11. Nd2 {[%emt 0:00:22]} Bb6 {[%emt 0:00:32]} 12. Ba3 {[%emt 0:01:09]} Bf5 {[%emt 0:00:25]} 13. Ne4 {[%emt 0:00:13]} Qd7 {[%emt 0:00:42]} 14. Rfe1 {[%emt 0:00:08]} Bg4 {[%emt 0:00:50]} 15. Qd2 {[%emt 0:00:40]} Qf5 {[%emt 0:00:24]} 16. Nc5 {[%emt 0:00:43]} Bxc5 {[%emt 0:00:18]} 17. Bxc5 {[%emt 0:00:02]} Bf3 {[%emt 0:00:02]} 18. Bf1 {[%emt 0:00:57]} b6 {[%emt 0:00:15]} 19. Ba3 {[%emt 0:00:02]} e4 {[%emt 0:00:30]} 20. d4 {[%emt 0:00:10]} Rad8 {[%emt 0:00:05]} 21. Qe3 {[%emt 0:00:06]} Ne7 {[%emt 0:00:31]} 22. c4 {[%emt 0:00:05]} Qf6 {[%emt 0:00:15]} 23. c3 {[%emt 0:00:09]} Nf5 {[%emt 0:00:02]} 24. Qf4 {[%emt 0:00:04]} g5 {[%emt 0:00:07]} 25. Qxc7 {[%emt 0:00:03]} Rc8 {[%emt 0:00:29]} 26. Qb7 {[%emt 0:00:02]} g4 {[%emt 0:00:04]} 27. d5 {[%emt 0:00:04]} e3 {[%emt 0:00:01]} 28. fxe3 {[%emt 0:00:04]} Qxc3 {[%emt 0:00:12]} 29. Qd7 {[%emt 0:00:03]} Nxe3 {[%emt 0:00:08]} 30. Bd6 {[%emt 0:00:04]} Rcd8 {[%emt 0:00:06]} 31. Qc7 {[%emt 0:00:03]} Nf5 {[%emt 0:00:03]} 32. Bf4 {[%emt 0:00:02]} Rxe1 {[%emt 0:00:03]} 33. Qxd8+ {[%emt 0:00:02]} Kh7 34. Rxe1 {[%emt 0:00:03]} Qd4+ {[%emt 0:00:07]} 35. Be3 {[%emt 0:00:04]} Nxe3 {[%emt 0:00:01]} 36. Qd7 {[%emt 0:00:05]} Nc2+ {[%emt 0:00:04]} 0-1

[Event "FIDE Womens World Cup 2021"]
[Site "Sochi"]
[Date "2021.07.12"]
[Round "1.7"]
[White "Azhar, Puteri Munajjah Az-Z"]
[Black "Matnadze, Ana"]
[Result "1/2-1/2"]
[ECO "A26"]
[WhiteElo "2046"]
[BlackElo "2421"]
[Annotator "NA"]
[PlyCount "130"]
[EventDate "2021.07.12"]
[EventType "k.o."]
[EventCountry "RUS"]
[SourceTitle "playchess.com"]
[Source "ChessBase"]
[SourceQuality "1"]
[TimeControl "40/5400+30:1800+30"]

1. c4 {[%emt 0:00:04]} e5 {[%emt 0:00:33]} 2. Nc3 {[%emt 0:00:16]} Nc6 {[%emt 0:00:20]} 3. g3 {[%emt 0:00:37]} g6 {[%emt 0:00:40]} 4. Bg2 {[%emt 0:00:13]} Bg7 {[%emt 0:00:05]} 5. d3 {[%emt 0:01:10]} d6 {[%emt 0:02:29]} 6. Nf3 {[%emt 0:02:33]} Nge7 {[%emt 0:02:24]} 7. O-O {[%emt 0:00:52]} O-O {[%emt 0:00:46]} 8. Ne1 {[%emt 0:06:05]} h6 {[%emt 0:03:18]} 9. Nc2 {[%emt 0:05:43]} Be6 {[%emt 0:01:35]} 10. Ne3 {[%emt 0:02:41]} Kh7 {[%emt 0:02:57]} 11. Ned5 {[%emt 0:00:59]} f5 {[%emt 0:02:45]} 12. f4 {[%emt 0:04:24]} a6 {[%emt 0:04:15]} 13. Rb1 {[%emt 0:00:26]} exf4 {[%emt 0:05:22]} 14. gxf4 {[%emt 0:00:34]} Ng8 {[%emt 0:01:58]} 15. e3 $11 {[%emt 0:11:39]} Nb8 {[%emt 0:18:02]} 16. Bd2 {[%emt 0:07:25]} Nd7 {[%emt 0:04:29]} 17. Nb4 {[%emt 0:13:56]} c6 {[%emt 0:04:42]} 18. Qe2 {[%emt 0:09:46]} Re8 {[%emt 0:02:51]} 19. Nc2 {[%emt 0:01:30]} Bf7 {[%emt 0:07:28]} 20. b3 {[%emt 0:02:24]} Ndf6 {[%emt 0:02:25]} 21. d4 {[%emt 0:06:56]} Rc8 {[%emt 0:07:20]} 22. Qd3 {[%emt 0:03:42]} d5 {[%emt 0:04:28]} 23. c5 {[%emt 0:02:04]} Ne4 {[%emt 0:00:08]} 24. Nxe4 {[%emt 0:07:53]} fxe4 {[%emt 0:04:12]} 25. Qe2 {[%emt 0:00:07]} Be6 {[%emt 0:00:14]} 26. Be1 {[%emt 0:04:28]} Rf8 {[%emt 0:00:48]} 27. Kh1 {[%emt 0:00:34]} Qd7 {[%emt 0:00:32]} 28. Bh4 {[%emt 0:00:43]} Bg4 {[%emt 0:00:29]} 29. Qe1 {[%emt 0:00:30]} Rce8 {[%emt 0:04:54]} 30. b4 {[%emt 0:00:40]} Nf6 {[%emt 0:04:29]} 31. a4 {[%emt 0:00:25]} Nh5 {[%emt 0:00:45]} 32. Qd2 {[%emt 0:01:00]} Bf3 {[%emt 0:00:32]} 33. Rg1 {[%emt 0:02:00]} Qh3 {[%emt 0:03:58]} 34. Bxf3 {[%emt 0:01:17]} exf3 {[%emt 0:00:40]} 35. Bf2 {[%emt 0:00:39]} Rf5 {[%emt 0:01:14]} 36. Qd3 {[%emt 0:00:24]} Re4 {[%emt 0:01:30]} 37. Qf1 {[%emt 0:00:17]} Qxf1 {[%emt 0:00:37]} 38. Rgxf1 {[%emt 0:00:44]} g5 {[%emt 0:00:13]} 39. fxg5 {[%emt 0:00:13]} hxg5 {[%emt 0:00:12]} 40. b5 {[%emt 0:01:11]} axb5 {[%emt 0:00:36]} 41. axb5 {[%emt 0:30:08]} Re6 {[%emt 0:32:02]} 42. bxc6 {[%emt 0:01:15]} bxc6 {[%emt 0:00:32]} 43. Rb6 {[%emt 0:00:00]} Nf6 {[%emt 0:00:00]} 44. Nb4 {[%emt 0:00:00]} Ne4 {[%emt 0:00:00]} 45. Kg1 {[%emt 0:00:00]} Rff6 {[%emt 0:00:00]} 46. Be1 {[%emt 0:00:00]} g4 {[%emt 0:00:00]} 47. Nd3 {[%emt 0:00:00]} Bh6 {[%emt 0:00:00]} 48. Rb7+ {[%emt 0:00:00]} Kg6 {[%emt 0:00:00]} 49. Ne5+ {[%emt 0:00:00]} Kf5 {[%emt 0:00:00]} 50. Rb3 {[%emt 0:00:00]} Rxe5 {[%emt 0:00:00]} 51. dxe5 {[%emt 0:00:00]} Kxe5 {[%emt 0:00:00]} 52. Bc3+ {[%emt 0:00:00]} Nxc3 {[%emt 0:00:00]} 53. Rxc3 {[%emt 0:00:00]} d4 {[%emt 0:00:00]} 54. exd4+ {[%emt 0:00:00]} Kxd4 {[%emt 0:00:00]} 55. Ra3 {[%emt 0:00:00]} Be3+ {[%emt 0:00:08]} 56. Kh1 {[%emt 0:00:00]} g3 {[%emt 0:03:50]} 57. Ra4+ {[%emt 0:00:05]} Kxc5 {[%emt 0:01:28]} 58. hxg3 {[%emt 0:00:11]} Bd4 {[%emt 0:00:40]} 59. Ra5+ {[%emt 0:00:22]} Kc4 {[%emt 0:00:26]} 60. g4 {[%emt 0:02:53]} c5 {[%emt 0:00:08]} 61. g5 {[%emt 0:00:33]} Rf5 {[%emt 0:01:31]} 62. Ra3 {[%emt 0:03:33]} Rxg5 {[%emt 0:01:13]} 63. Raxf3 {[%emt 0:00:18]} Rg8 {[%emt 0:00:34]} 64. Rc1+ {[%emt 0:00:32]} Kd5 {[%emt 0:00:05]} 65. Rf5+ {[%emt 0:00:26]} Ke4 {[%emt 0:00:30]} 1/2-1/2

[Event "FIDE Womens World Cup 2021"]
[Site "Sochi"]
[Date "2021.07.14"]
[Round "1.8"]
[White "Mammadova, Gulnar"]
[Black "Narva, Mai"]
[Result "1/2-1/2"]
[ECO "A40"]
[WhiteElo "2385"]
[BlackElo "2276"]
[Annotator "ChessBase"]
[PlyCount "79"]
[EventDate "2021.07.12"]
[EventType "k.o."]
[EventCountry "RUS"]
[SourceTitle "playchess.com"]
[Source "ChessBase"]
[SourceQuality "1"]
[TimeControl "300+3"]

1. d4 {[%emt 0:00:02]} g6 {[%emt 0:00:07]} 2. Nf3 {[%emt 0:00:02]} Bg7 {[%emt 0:00:02]} 3. Bf4 {[%emt 0:00:04]} Nf6 {[%emt 0:00:02]} 4. Nc3 {[%emt 0:00:13]} d5 {[%emt 0:00:16]} 5. e3 {[%emt 0:00:19]} O-O {[%emt 0:00:03]} 6. h4 {[%emt 0:00:06]} h5 {[%emt 0:00:42]} 7. Be2 {[%emt 0:00:09]} c5 {[%emt 0:00:18]} 8. Ne5 {[%emt 0:00:19]} Nc6 {[%emt 0:00:08]} 9. O-O {[%emt 0:00:28]} cxd4 {[%emt 0:00:47]} 10. exd4 {[%emt 0:00:01]} Qb6 {[%emt 0:00:19]} 11. Nxc6 {[%emt 0:00:19]} Qxc6 {[%emt 0:00:17]} 12. Be5 {[%emt 0:00:16]} Bf5 {[%emt 0:00:12]} 13. Bd3 {[%emt 0:00:38]} Bg4 {[%emt 0:00:19]} 14. Be2 {[%emt 0:00:04]} Be6 {[%emt 0:00:11]} 15. Bf3 {[%emt 0:00:06]} Rac8 {[%emt 0:00:08]} 16. Qe2 {[%emt 0:00:17]} Rfd8 {[%emt 0:00:27]} 17. a4 {[%emt 0:00:10]} a6 {[%emt 0:00:11]} 18. a5 {[%emt 0:00:06]} Bh6 {[%emt 0:00:08]} 19. Ra3 {[%emt 0:00:25]} Ng4 {[%emt 0:00:06]} 20. Bg3 {[%emt 0:00:16]} Bg7 {[%emt 0:00:08]} 21. Rd1 {[%emt 0:00:07]} Bf5 {[%emt 0:00:14]} 22. Rb3 {[%emt 0:00:24]} e6 {[%emt 0:00:04]} 23. Rb6 {[%emt 0:00:10]} Qd7 {[%emt 0:00:02]} 24. Bxg4 {[%emt 0:00:17]} hxg4 {[%emt 0:00:10]} 25. Bf4 {[%emt 0:00:17]} Rc4 {[%emt 0:00:21]} 26. Be3 {[%emt 0:00:06]} Rdc8 {[%emt 0:00:10]} 27. Rd2 {[%emt 0:00:01]} Qc7 {[%emt 0:00:10]} 28. g3 {[%emt 0:00:05]} Bf8 {[%emt 0:00:08]} 29. Bf4 {[%emt 0:00:04]} Qd7 {[%emt 0:00:01]} 30. Be5 {[%emt 0:00:21]} Bb4 {[%emt 0:00:05]} 31. Qe3 {[%emt 0:00:07]} Kh7 {[%emt 0:00:01]} 32. Qg5 {[%emt 0:00:09]} Bxc3 {[%emt 0:00:15]} 33. bxc3 {[%emt 0:00:01]} Rxc3 {[%emt 0:00:03]} 34. h5 {[%emt 0:00:01]} Rxc2 {[%emt 0:00:06]} 35. hxg6+ {[%emt 0:00:01]} fxg6 {[%emt 0:00:03]} 36. Qh4+ {[%emt 0:00:02]} Kg8 {[%emt 0:00:01]} 37. Qh8+ {[%emt 0:00:01]} Kf7 {[%emt 0:00:01]} 38. Qf6+ {[%emt 0:00:02]} Ke8 {[%emt 0:00:03]} 39. Qh8+ {[%emt 0:00:01]} Ke7 {[%emt 0:00:03]} 40. Qf6+ {[%emt 0:00:00]} 1/2-1/2